[Event "NJSK 2026 Jeugd B"]
[Site "Helmond, Netherlands"]
[Date "2026.04.28"]
[Round "4.10"]
[White "Yantur, Arda"]
[Black "Okita, Shinsaku"]
[Result "0-1"]
[TimeControl "90min/40moves + 30min + 30sec/move"]
[WhiteTitle "-"]
[BlackTitle "-"]
[WhiteFideId "40102041"]
[BlackFideId "1094823"]
[WhiteElo "1750"]
[BlackElo "1899"]

1. e4 {[%clk 01:30:57]} {[%emt 00:00:03]} c5 {[%clk 01:30:58]} {[%emt
00:00:03]} 2. c3 {[%clk 01:31:22]} {[%emt 00:00:04]} Nc6 {[%clk 01:30:03]}
{[%emt 00:01:25]} 3. d4 {[%clk 01:31:44]} {[%emt 00:00:07]} cxd4 {[%clk
01:30:29]} {[%emt 00:00:04]} 4. cxd4 {[%clk 01:32:11]} {[%emt 00:00:03]} d5
{[%clk 01:30:52]} {[%emt 00:00:07]} 5. Bb5 {[%clk 01:23:55]} {[%emt 00:08:46]}
a6 {[%clk 01:28:20]} {[%emt 00:03:03]} 6. Bxc6+ {[%clk 01:20:10]} {[%emt
00:04:14]} bxc6 {[%clk 01:27:49]} {[%emt 00:01:01]} 7. Nc3 {[%clk 01:18:49]}
{[%emt 00:01:51]} dxe4 {[%clk 01:21:06]} {[%emt 00:07:13]} 8. Nxe4 {[%clk
01:15:32]} {[%emt 00:03:46]} Nf6 {[%clk 01:18:55]} {[%emt 00:02:41]} 9. Ng3
{[%clk 01:13:59]} {[%emt 00:02:03]} c5 {[%clk 01:13:39]} {[%emt 00:05:47]} 10.
N1e2 {[%clk 01:08:19]} {[%emt 00:06:09]} cxd4 {[%clk 01:09:21]} {[%emt
00:04:49]} 11. Qxd4 {[%clk 01:08:09]} {[%emt 00:00:40]} Qxd4 {[%clk 01:08:19]}
{[%emt 00:01:32]} 12. Nxd4 {[%clk 01:08:29]} {[%emt 00:00:09]} e5 {[%clk
01:07:51]} {[%emt 00:00:59]} 13. Nc2 {[%clk 00:56:40]} {[%emt 00:12:18]} Bd6
{[%clk 01:05:12]} {[%emt 00:03:09]} 14. O-O {[%clk 00:56:19]} {[%emt 00:00:51]}
O-O {[%clk 01:05:07]} {[%emt 00:00:35]} 15. b3 {[%clk 00:55:37]} {[%emt
00:01:13]} Be6 {[%clk 01:03:01]} {[%emt 00:02:36]} 16. Ba3 {[%clk 00:52:08]}
{[%emt 00:03:59]} Rfd8 {[%clk 01:01:46]} {[%emt 00:01:44]} 17. Bxd6 {[%clk
00:52:00]} {[%emt 00:00:38]} Rxd6 {[%clk 01:02:10]} {[%emt 00:00:07]} 18. Ne3
{[%clk 00:45:18]} {[%emt 00:07:12]} Kf8 {[%clk 00:55:20]} {[%emt 00:07:20]} 19.
Rac1 {[%clk 00:43:28]} {[%emt 00:02:20]} Rd2 {[%clk 00:53:58]} {[%emt
00:01:51]} 20. Rc2 {[%clk 00:38:03]} {[%emt 00:05:56]} Rad8 {[%clk 00:50:15]}
{[%emt 00:04:12]} 21. Rfc1 {[%clk 00:36:48]} {[%emt 00:01:46]} Ng4 {[%clk
00:40:43]} {[%emt 00:10:01]} 22. Rxd2 {[%clk 00:34:04]} {[%emt 00:03:15]} Rxd2
{[%clk 00:40:01]} {[%emt 00:01:11]} 23. Rc2 {[%clk 00:33:21]} {[%emt 00:01:13]}
Rd6 {[%clk 00:36:27]} {[%emt 00:04:05]} 24. Nxg4 {[%clk 00:23:49]} {[%emt
00:10:03]} Rd1+ {[%clk 00:34:02]} {[%emt 00:02:55]} 25. Nf1 {[%clk 00:24:18]}
{[%emt 00:00:02]} Bxg4 {[%clk 00:34:11]} {[%emt 00:00:20]} 26. f3 {[%clk
00:24:10]} {[%emt 00:00:38]} Bf5 {[%clk 00:32:38]} {[%emt 00:02:04]} 27. Rd2
{[%clk 00:23:53]} {[%emt 00:00:47]} Rxd2 {[%clk 00:29:40]} {[%emt 00:03:27]} 28.
Nxd2 {[%clk 00:24:18]} {[%emt 00:00:06]} Ke7 {[%clk 00:28:40]} {[%emt
00:01:31]} 29. Kf2 {[%clk 00:24:39]} {[%emt 00:00:08]} Be6 {[%clk 00:24:46]}
{[%emt 00:04:24]} 30. Ke3 {[%clk 00:19:30]} {[%emt 00:05:39]} f5 {[%clk
00:23:50]} {[%emt 00:01:27]} 31. Kd3 {[%clk 00:18:17]} {[%emt 00:01:42]} Kd6
{[%clk 00:22:55]} {[%emt 00:01:25]} 32. a3 {[%clk 00:13:03]} {[%emt 00:05:44]}
Kd5 {[%clk 00:18:37]} {[%emt 00:04:48]} 33. Ke3 {[%clk 00:08:54]} {[%emt
00:04:39]} g5 {[%clk 00:18:12]} {[%emt 00:00:55]} 34. g3 {[%clk 00:08:20]}
{[%emt 00:01:03]} f4+ {[%clk 00:14:22]} {[%emt 00:04:21]} 35. gxf4 {[%clk
00:08:44]} {[%emt 00:00:06]} exf4+ {[%clk 00:14:11]} {[%emt 00:00:41]} 36. Kd3
{[%clk 00:07:29]} {[%emt 00:01:44]} Bf5+ {[%clk 00:14:01]} {[%emt 00:00:41]} 37.
Ke2 {[%clk 00:03:34]} {[%emt 00:04:25]} Kd4 {[%clk 00:12:09]} {[%emt 00:02:22]}
38. b4 {[%clk 00:03:15]} {[%emt 00:00:49]} g4 {[%clk 00:08:45]} {[%emt
00:03:54]} 39. Kf2 {[%clk 00:02:24]} {[%emt 00:01:21]} Be6 {[%clk 00:07:32]}
{[%emt 00:01:44]} 40. fxg4 {[%clk 00:00:43]} {[%emt 00:02:10]} Bxg4 {[%clk
00:08:00]} {[%emt 00:00:02]} 41. Nb3+ {[%clk 00:28:23]} {[%emt 00:02:50]} Kc4
{[%clk 00:35:22]} {[%emt 00:03:08]} 42. Nc5 {[%clk 00:28:13]} {[%emt 00:00:39]}
Kb5 {[%clk 00:33:59]} {[%emt 00:01:54]} 43. Nd3 {[%clk 00:12:34]} {[%emt
00:16:08]} Ka4 {[%clk 00:33:48]} {[%emt 00:00:42]} 44. Nc5+ {[%clk 00:12:42]}
{[%emt 00:00:22]} Kb5 {[%clk 00:34:08]} {[%emt 00:00:09]} 45. Nd3 {[%clk
00:13:07]} {[%emt 00:00:05]} Bf5 {[%clk 00:32:27]} {[%emt 00:02:11]} 46. Nxf4
{[%clk 00:11:11]} {[%emt 00:02:26]} Ka4 {[%clk 00:32:46]} {[%emt 00:00:12]} 47.
Ke3 {[%clk 00:09:13]} {[%emt 00:02:28]} Kxa3 {[%clk 00:32:53]} {[%emt
00:00:23]} 48. Nd5 {[%clk 00:09:34]} {[%emt 00:00:08]} Be6 {[%clk 00:32:42]}
{[%emt 00:00:41]} 49. Nc3 {[%clk 00:00:32]} {[%emt 00:09:32]} Kxb4 {[%clk
00:32:40]} {[%emt 00:00:32]} 50. Kd3 {[%clk 00:00:36]} {[%emt 00:00:25]} a5
{[%clk 00:32:34]} {[%emt 00:00:37]} 51. Kd2 {[%clk 00:00:33]} {[%emt 00:00:34]}
a4 {[%clk 00:32:10]} {[%emt 00:00:53]} 52. Ne4 {[%clk 00:00:37]} {[%emt
00:00:27]} Bf5 {[%clk 00:31:28]} {[%emt 00:01:11]} 53. Nd6 {[%clk 00:00:31]}
{[%emt 00:00:37]} Bg6 {[%clk 00:31:03]} {[%emt 00:00:54]} 54. Kc1 {[%clk
00:00:33]} {[%emt 00:00:28]} a3 {[%clk 00:31:04]} {[%emt 00:00:29]} 55. h4
{[%clk 00:00:41]} {[%emt 00:00:22]} Kb3 {[%clk 00:30:15]} {[%emt 00:01:19]} 56.
Nb5 {[%clk 00:00:51]} {[%emt 00:00:21]} a2 {[%clk 00:29:37]} {[%emt 00:01:07]}
57. Nd4+ {[%clk 00:01:09]} {[%emt 00:00:12]} Kc4 {[%clk 00:29:59]} {[%emt
00:00:07]} 58. Kb2 {[%clk 00:00:32]} {[%emt 00:01:08]} Kxd4 {[%clk 00:30:14]}
{[%emt 00:00:15]} 59. Kxa2 {[%clk 00:00:58]} {[%emt 00:00:04]} Ke4 {[%clk
00:30:15]} {[%emt 00:00:29]} 60. Kb2 {[%clk 00:01:24]} {[%emt 00:00:04]} Kf4
{[%clk 00:30:35]} {[%emt 00:00:10]} 61. Kc1 {[%clk 00:01:52]} {[%emt 00:00:03]}
Kg4 {[%clk 00:30:47]} {[%emt 00:00:17]} 62. h5 {[%clk 00:02:16]} {[%emt
00:00:07]} Bxh5 {[%clk 00:31:05]} {[%emt 00:00:11]} 63. Kd1 {[%clk 00:02:41]}
{[%emt 00:00:05]} Kg3+ {[%clk 00:31:24]} {[%emt 00:00:10]} 64. Ke1 {[%clk
00:03:06]} {[%emt 00:00:05]} Bf3 {[%clk 00:31:33]} {[%emt 00:00:20]} 65. Kf1
{[%clk 00:03:32]} {[%emt 00:00:05]} h5 {[%clk 00:31:53]} {[%emt 00:00:09]} 66.
Kg1 {[%clk 00:03:59]} {[%emt 00:00:03]} h4 {[%clk 00:32:17]} {[%emt 00:00:06]}
67. Kf1 {[%clk 00:04:27]} {[%emt 00:00:02]} h3 {[%clk 00:32:42]} {[%emt
00:00:05]} 0-1

[Event "NJSK 2026 Jeugd B"]
[Site "Helmond, Netherlands"]
[Date "2026.04.29"]
[Round "5.1"]
[White "Chua, Ethan"]
[Black "Baarspul, Bram"]
[Result "1-0"]
[TimeControl "90min/40moves + 30min + 30sec/move"]
[WhiteTitle "-"]
[BlackTitle "-"]
[WhiteFideId "1089250"]
[BlackFideId "40106187"]
[WhiteElo "2168"]
[BlackElo "2177"]

1. Nf3 {[%clk 01:30:54]} {[%emt 00:00:06]} c5 {[%clk 01:29:41]} {[%emt
00:01:20]} 2. c4 {[%clk 01:31:20]} {[%emt 00:00:04]} Nf6 {[%clk 01:29:55]}
{[%emt 00:00:16]} 3. Nc3 {[%clk 01:31:46]} {[%emt 00:00:05]} Nc6 {[%clk
01:30:13]} {[%emt 00:00:12]} 4. d4 {[%clk 01:32:11]} {[%emt 00:00:05]} cxd4
{[%clk 01:30:21]} {[%emt 00:00:21]} 5. Nxd4 {[%clk 01:32:36]} {[%emt 00:00:05]}
e6 {[%clk 01:30:30]} {[%emt 00:00:22]} 6. a3 {[%clk 01:32:55]} {[%emt
00:00:11]} d5 {[%clk 01:24:15]} {[%emt 00:06:45]} 7. cxd5 {[%clk 01:33:01]}
{[%emt 00:00:24]} exd5 {[%clk 01:24:27]} {[%emt 00:00:18]} 8. g3 {[%clk
01:33:22]} {[%emt 00:00:10]} Bc5 {[%clk 01:23:33]} {[%emt 00:01:23]} 9. Be3
{[%clk 01:33:44]} {[%emt 00:00:07]} Bb6 {[%clk 01:18:57]} {[%emt 00:05:07]} 10.
Na4 {[%clk 01:34:04]} {[%emt 00:00:10]} Bc7 {[%clk 01:16:55]} {[%emt 00:02:33]}
11. Nxc6 {[%clk 01:26:43]} {[%emt 00:07:51]} bxc6 {[%clk 01:17:16]} {[%emt
00:00:08]} 12. Bg2 {[%clk 01:25:52]} {[%emt 00:01:21]} O-O {[%clk 01:17:03]}
{[%emt 00:00:43]} 13. O-O {[%clk 01:26:08]} {[%emt 00:00:13]} Re8 {[%clk
01:06:16]} {[%emt 00:11:19]} 14. Rc1 {[%clk 01:11:00]} {[%emt 00:15:38]} Bd7
{[%clk 00:50:32]} {[%emt 00:16:14]} 15. Bg5 {[%clk 01:02:26]} {[%emt 00:09:03]}
h6 {[%clk 00:47:49]} {[%emt 00:03:13]} 16. Bxf6 {[%clk 01:02:41]} {[%emt
00:00:15]} Qxf6 {[%clk 00:48:13]} {[%emt 00:00:06]} 17. e4 {[%clk 01:03:06]}
{[%emt 00:00:05]} Be5 {[%clk 00:37:45]} {[%emt 00:10:58]} 18. Nc5 {[%clk
00:38:59]} {[%emt 00:24:38]} Rad8 {[%clk 00:36:58]} {[%emt 00:01:16]} 19. Qa4
{[%clk 00:39:21]} {[%emt 00:00:10]} Bxb2 {[%clk 00:26:27]} {[%emt 00:11:00]} 20.
Nxd7 {[%clk 00:38:11]} {[%emt 00:01:40]} Rxd7 {[%clk 00:26:53]} {[%emt
00:00:05]} 21. Rxc6 {[%clk 00:38:17]} {[%emt 00:00:23]} Qe7 {[%clk 00:26:51]}
{[%emt 00:00:30]} 22. exd5 {[%clk 00:37:39]} {[%emt 00:01:10]} Bxa3 {[%clk
00:26:11]} {[%emt 00:01:10]} 23. Rc3 {[%clk 00:31:42]} {[%emt 00:06:24]} Bc5
{[%clk 00:25:48]} {[%emt 00:00:56]} 24. Rxc5 {[%clk 00:32:04]} {[%emt
00:00:09]} 1-0

[Event "NJSK 2026 Jeugd B"]
[Site "Helmond, Netherlands"]
[Date "2026.04.29"]
[Round "5.2"]
[White "Aravindhan, Achyuth"]
[Black "Zecha, Oscar"]
[Result "1/2-1/2"]
[TimeControl "90min/40moves + 30min + 30sec/move"]
[WhiteTitle "-"]
[BlackTitle "-"]
[WhiteFideId "1084216"]
[BlackFideId "1073826"]
[WhiteElo "2277"]
[BlackElo "2120"]

1. e4 {[%clk 01:30:59]} {[%emt 00:00:01]} e5 {[%clk 01:30:54]} {[%emt
00:00:05]} 2. Nf3 {[%clk 01:31:26]} {[%emt 00:00:03]} Nc6 {[%clk 01:31:19]}
{[%emt 00:00:05]} 3. Bc4 {[%clk 01:31:50]} {[%emt 00:00:05]} Bc5 {[%clk
01:31:46]} {[%emt 00:00:04]} 4. d3 {[%clk 01:32:14]} {[%emt 00:00:06]} Nf6
{[%clk 01:30:36]} {[%emt 00:01:40]} 5. a4 {[%clk 01:32:37]} {[%emt 00:00:08]}
O-O {[%clk 01:21:27]} {[%emt 00:09:38]} 6. a5 {[%clk 01:32:51]} {[%emt
00:00:17]} d6 {[%clk 01:18:24]} {[%emt 00:03:32]} 7. c3 {[%clk 01:31:39]}
{[%emt 00:01:42]} a6 {[%clk 01:18:30]} {[%emt 00:00:26]} 8. O-O {[%clk
01:32:00]} {[%emt 00:00:08]} Ba7 {[%clk 01:14:56]} {[%emt 00:04:04]} 9. Be3
{[%clk 01:30:57]} {[%emt 00:01:32]} Nh5 {[%clk 01:05:06]} {[%emt 00:10:20]} 10.
Nbd2 {[%clk 00:47:09]} {[%emt 00:44:18]} Qf6 {[%clk 01:04:18]} {[%emt
00:01:19]} 11. Kh1 {[%clk 00:41:48]} {[%emt 00:05:49]} Bxe3 {[%clk 01:00:45]}
{[%emt 00:04:04]} 12. fxe3 {[%clk 00:40:23]} {[%emt 00:01:54]} Qh6 {[%clk
01:01:09]} {[%emt 00:00:07]} 13. Qe1 {[%clk 00:39:45]} {[%emt 00:01:08]} Nf6
{[%clk 00:58:18]} {[%emt 00:03:21]} 14. Qh4 {[%clk 00:33:52]} {[%emt 00:06:23]}
Qxh4 {[%clk 00:55:56]} {[%emt 00:02:53]} 15. Nxh4 {[%clk 00:33:55]} {[%emt
00:00:27]} Ng4 {[%clk 00:54:43]} {[%emt 00:01:43]} 16. Rfe1 {[%clk 00:33:10]}
{[%emt 00:01:15]} Be6 {[%clk 00:46:23]} {[%emt 00:08:50]} 17. Kg1 {[%clk
00:32:17]} {[%emt 00:01:23]} Rfe8 {[%clk 00:41:26]} {[%emt 00:05:27]} 18. Nhf3
{[%clk 00:25:47]} {[%emt 00:07:00]} Rad8 {[%clk 00:39:44]} {[%emt 00:02:12]} 19.
Bxe6 {[%clk 00:19:30]} {[%emt 00:06:47]} Rxe6 {[%clk 00:39:57]} {[%emt
00:00:18]} 20. b4 {[%clk 00:18:09]} {[%emt 00:01:52]} d5 {[%clk 00:35:29]}
{[%emt 00:04:58]} 21. exd5 {[%clk 00:17:56]} {[%emt 00:00:41]} Rxd5 {[%clk
00:35:57]} 22. Ne4 {[%clk 00:17:35]} {[%emt 00:00:53]} Rxd3 {[%clk 00:27:33]}
{[%emt 00:08:55]} 23. Nc5 {[%clk 00:17:48]} {[%emt 00:00:17]} Rxc3 {[%clk
00:27:40]} {[%emt 00:00:23]} 24. Nxe6 {[%clk 00:17:53]} {[%emt 00:00:26]} fxe6
{[%clk 00:28:08]} {[%emt 00:00:01]} 25. Rac1 {[%clk 00:17:52]} {[%emt
00:00:30]} Rxc1 {[%clk 00:27:09]} {[%emt 00:01:30]} 26. Rxc1 {[%clk 00:18:21]}
{[%emt 00:00:01]} Nxe3 {[%clk 00:27:02]} {[%emt 00:00:37]} 27. b5 {[%clk
00:17:06]} {[%emt 00:01:45]} Nxa5 {[%clk 00:22:49]} {[%emt 00:04:43]} 28. bxa6
{[%clk 00:16:25]} {[%emt 00:01:11]} bxa6 {[%clk 00:22:23]} {[%emt 00:00:56]} 29.
Rxc7 {[%clk 00:16:21]} {[%emt 00:00:34]} Nac4 {[%clk 00:10:15]} {[%emt
00:12:38]} 30. Ng5 {[%clk 00:16:01]} {[%emt 00:00:49]} g6 {[%clk 00:08:44]}
{[%emt 00:02:02]} 31. Nxe6 {[%clk 00:15:49]} {[%emt 00:00:41]} a5 {[%clk
00:07:07]} {[%emt 00:02:08]} 32. Rg7+ {[%clk 00:08:47]} {[%emt 00:07:32]} Kh8
{[%clk 00:07:36]} {[%emt 00:00:01]} 33. Rc7 {[%clk 00:01:09]} {[%emt 00:08:08]}
h6 {[%clk 00:06:57]} {[%emt 00:01:09]} 34. h4 {[%clk 00:00:50]} {[%emt
00:00:49]} a4 {[%clk 00:06:30]} {[%emt 00:00:58]} 35. Rc8+ {[%clk 00:01:03]}
{[%emt 00:00:16]} Kh7 {[%clk 00:06:53]} {[%emt 00:00:06]} 36. Rc7+ {[%clk
00:01:30]} {[%emt 00:00:04]} Kg8 {[%clk 00:03:44]} {[%emt 00:03:38]} 37. Rg7+
{[%clk 00:01:52]} {[%emt 00:00:09]} Kh8 {[%clk 00:04:13]} {[%emt 00:00:01]} 38.
Rf7 {[%clk 00:00:34]} {[%emt 00:01:48]} a3 {[%clk 00:03:45]} {[%emt 00:00:58]}
39. Rf8+ {[%clk 00:00:49]} {[%emt 00:00:15]} Kh7 {[%clk 00:04:14]} {[%emt
00:00:01]} 40. Rf7+ {[%clk 00:01:09]} {[%emt 00:00:10]} Kg8 {[%clk 00:03:18]}
{[%emt 00:01:26]} 41. Rf8+ {[%clk 00:00:59]} {[%emt 00:00:39]} Kh7 {[%clk
00:03:43]} {[%emt 00:00:05]} 42. Rf7+ {[%clk 00:01:12]} {[%emt 00:00:18]} Kg8
{[%clk 00:03:12]} {[%emt 00:01:01]} 43. Rf8+ {[%clk 00:01:11]} {[%emt
00:00:32]} 1/2-1/2

[Event "NJSK 2026 Jeugd B"]
[Site "Helmond, Netherlands"]
[Date "2026.04.29"]
[Round "5.3"]
[White "Grooten, Tommy"]
[Black "Teianu, Maxim"]
[Result "1/2-1/2"]
[TimeControl "90min/40moves + 30min + 30sec/move"]
[WhiteTitle "-"]
[BlackTitle "-"]
[WhiteFideId "1068806"]
[BlackFideId "40101967"]
[WhiteElo "2347"]
[BlackElo "2024"]

1. g3 {[%clk 01:30:46]} {[%emt 00:00:13]} d5 {[%clk 01:30:41]} {[%emt
00:00:20]} 2. Nf3 {[%clk 01:31:12]} {[%emt 00:00:03]} g6 {[%clk 01:31:05]}
{[%emt 00:00:06]} 3. Bg2 {[%clk 01:31:38]} {[%emt 00:00:04]} Bg7 {[%clk
01:31:16]} {[%emt 00:00:20]} 4. d4 {[%clk 01:31:48]} {[%emt 00:00:20]} c6
{[%clk 01:31:02]} {[%emt 00:00:42]} 5. c4 {[%clk 01:32:09]} {[%emt 00:00:10]}
dxc4 {[%clk 01:31:20]} {[%emt 00:00:13]} 6. a4 {[%clk 01:32:35]} {[%emt
00:00:04]} Nf6 {[%clk 01:24:24]} {[%emt 00:07:25]} 7. Na3 {[%clk 01:30:58]}
{[%emt 00:02:07]} a5 {[%clk 01:23:58]} {[%emt 00:00:55]} 8. Nxc4 {[%clk
01:29:16]} {[%emt 00:02:13]} O-O {[%clk 01:22:45]} {[%emt 00:01:44]} 9. O-O
{[%clk 01:28:41]} {[%emt 00:01:04]} Nd5 {[%clk 01:21:46]} {[%emt 00:01:29]} 10.
e4 {[%clk 01:25:08]} {[%emt 00:04:03]} Nb4 {[%clk 01:22:07]} {[%emt 00:00:09]}
11. Be3 {[%clk 01:19:01]} {[%emt 00:06:36]} Nd7 {[%clk 01:12:24]} {[%emt
00:10:14]} 12. Qd2 {[%clk 01:07:37]} {[%emt 00:11:53]} Nf6 {[%clk 01:04:31]}
{[%emt 00:08:22]} 13. Nfe5 {[%clk 01:07:36]} {[%emt 00:00:33]} Ra6 {[%clk
00:54:10]} {[%emt 00:10:51]} 14. Rfc1 {[%clk 00:51:57]} {[%emt 00:16:09]} b6
{[%clk 00:44:27]} {[%emt 00:10:12]} 15. Qe2 {[%clk 00:43:31]} {[%emt 00:08:58]}
Bb7 {[%clk 00:38:42]} {[%emt 00:06:14]} 16. Rd1 {[%clk 00:35:29]} {[%emt
00:08:33]} e6 {[%clk 00:33:29]} {[%emt 00:05:43]} 17. b3 {[%clk 00:31:32]}
{[%emt 00:04:27]} Qe7 {[%clk 00:31:39]} {[%emt 00:02:20]} 18. f3 {[%clk
00:29:44]} {[%emt 00:02:19]} Ne8 {[%clk 00:30:30]} {[%emt 00:01:39]} 19. Rac1
{[%clk 00:27:05]} {[%emt 00:03:09]} Nd6 {[%clk 00:28:09]} {[%emt 00:02:50]} 20.
Nd3 {[%clk 00:09:01]} {[%emt 00:18:34]} Nxc4 {[%clk 00:23:53]} {[%emt
00:04:46]} 21. Rxc4 {[%clk 00:09:00]} {[%emt 00:00:31]} Nxd3 {[%clk 00:20:55]}
{[%emt 00:03:28]} 22. Qxd3 {[%clk 00:09:27]} {[%emt 00:00:03]} Raa8 {[%clk
00:20:53]} {[%emt 00:00:32]} 23. Qc2 {[%clk 00:09:03]} {[%emt 00:00:54]} Rac8
{[%clk 00:19:33]} {[%emt 00:01:50]} 24. Qc1 {[%clk 00:04:14]} {[%emt 00:05:19]}
Rfd8 {[%clk 00:17:00]} {[%emt 00:03:04]} 25. Bg5 {[%clk 00:02:44]} {[%emt
00:01:59]} Bf6 {[%clk 00:13:53]} {[%emt 00:03:37]} 26. Bxf6 {[%clk 00:03:09]}
{[%emt 00:00:05]} Qxf6 {[%clk 00:14:18]} {[%emt 00:00:06]} 27. f4 {[%clk
00:02:48]} {[%emt 00:00:50]} Qe7 {[%clk 00:14:01]} {[%emt 00:00:47]} 28. Rd2
{[%clk 00:00:39]} {[%emt 00:02:39]} Rd7 {[%clk 00:12:31]} {[%emt 00:02:00]} 29.
Rdc2 {[%emt 00:00:32]} Rcd8 {[%clk 00:12:38]} {[%emt 00:00:22]} 30. Qe3 {[%clk
00:00:35]} {[%emt 00:00:34]} b5 {[%clk 00:12:00]} {[%emt 00:01:08]} 31. Rc5
{[%clk 00:00:48]} {[%emt 00:00:16]} Rxd4 {[%clk 00:12:17]} {[%emt 00:00:12]} 32.
h3 {[%clk 00:00:40]} {[%emt 00:00:39]} bxa4 {[%clk 00:10:03]} {[%emt 00:02:45]}
33. bxa4 {[%clk 00:00:48]} {[%emt 00:00:21]} Rxa4 {[%clk 00:09:52]} {[%emt
00:00:41]} 34. e5 {[%clk 00:00:49]} {[%emt 00:00:29]} Qd7 {[%clk 00:09:29]}
{[%emt 00:00:52]} 35. Kh2 {[%clk 00:00:45]} {[%emt 00:00:35]} Qd4 {[%clk
00:08:33]} {[%emt 00:01:26]} 36. Qxd4 {[%clk 00:00:39]} {[%emt 00:00:36]} Rdxd4
{[%clk 00:08:56]} {[%emt 00:00:07]} 37. Bxc6 {[%clk 00:00:39]} {[%emt
00:00:31]} Bxc6 {[%clk 00:09:19]} {[%emt 00:00:07]} 38. Rxc6 {[%clk 00:01:08]}
Kg7 {[%clk 00:09:08]} {[%emt 00:00:40]} 39. Ra6 {[%clk 00:01:01]} {[%emt
00:00:37]} Ra3 {[%clk 00:09:14]} {[%emt 00:00:23]} 40. h4 {[%clk 00:01:01]}
{[%emt 00:00:31]} Rdd3 {[%clk 00:09:24]} {[%emt 00:00:21]} 41. Rg2 {[%clk
00:27:00]} {[%emt 00:04:30]} h5 {[%clk 00:38:33]} {[%emt 00:01:21]} 42. Ra7
{[%emt 00:03:04]} Rdb3 {[%clk 00:37:06]} 43. Ra8 {[%clk 00:16:00]} {[%emt
00:10:54]} 1/2-1/2

[Event "NJSK 2026 Jeugd B"]
[Site "Helmond, Netherlands"]
[Date "2026.04.29"]
[Round "5.4"]
[White "Hallibert, Emilien"]
[Black "Groenewoud, Joel"]
[Result "0-1"]
[TimeControl "90min/40moves + 30min + 30sec/move"]
[WhiteTitle "-"]
[BlackTitle "-"]
[WhiteFideId "1092561"]
[BlackFideId "1087746"]
[WhiteElo "1975"]
[BlackElo "2114"]

1. Nf3 {[%clk 01:30:58]} {[%emt 00:00:02]} Nf6 {[%clk 01:29:48]} {[%emt
00:01:12]} 2. c4 {[%clk 01:31:21]} {[%emt 00:00:07]} g6 {[%clk 01:29:44]}
{[%emt 00:00:33]} 3. Nc3 {[%clk 01:31:39]} {[%emt 00:00:13]} Bg7 {[%clk
01:29:42]} {[%emt 00:00:31]} 4. g3 {[%clk 01:32:02]} {[%emt 00:00:07]} O-O
{[%clk 01:29:50]} {[%emt 00:00:23]} 5. Bg2 {[%clk 01:32:29]} {[%emt 00:00:03]}
d6 {[%clk 01:29:54]} {[%emt 00:00:25]} 6. O-O {[%clk 01:32:51]} {[%emt
00:00:08]} c5 {[%clk 01:23:01]} {[%emt 00:07:24]} 7. d3 {[%clk 01:33:16]}
{[%emt 00:00:05]} Nc6 {[%clk 01:23:10]} {[%emt 00:00:21]} 8. a3 {[%clk
01:33:39]} {[%emt 00:00:07]} e6 {[%clk 01:15:54]} {[%emt 00:07:46]} 9. e3
{[%clk 01:26:08]} {[%emt 00:08:00]} d5 {[%clk 01:06:25]} {[%emt 00:10:00]} 10.
cxd5 {[%clk 01:22:49]} {[%emt 00:03:48]} exd5 {[%clk 01:06:21]} {[%emt
00:00:34]} 11. d4 {[%clk 01:22:35]} {[%emt 00:00:44]} Ne4 {[%clk 01:03:51]}
{[%emt 00:03:00]} 12. Bd2 {[%clk 01:06:22]} {[%emt 00:16:43]} Be6 {[%clk
00:51:40]} {[%emt 00:12:41]} 13. Rc1 {[%clk 00:55:09]} {[%emt 00:11:43]} Rc8
{[%clk 00:44:45]} {[%emt 00:07:25]} 14. b4 {[%clk 00:34:44]} {[%emt 00:20:57]}
Nxd2 {[%clk 00:34:54]} {[%emt 00:10:21]} 15. Qxd2 {[%clk 00:34:50]} {[%emt
00:00:23]} cxb4 {[%clk 00:35:07]} {[%emt 00:00:17]} 16. axb4 {[%clk 00:33:32]}
{[%emt 00:01:49]} Nxb4 {[%clk 00:35:16]} {[%emt 00:00:21]} 17. Na4 {[%clk
00:26:40]} {[%emt 00:07:22]} Rxc1 {[%clk 00:28:18]} {[%emt 00:07:28]} 18. Rxc1
{[%clk 00:26:39]} {[%emt 00:00:30]} a5 {[%clk 00:28:09]} {[%emt 00:00:40]} 19.
Qe2 {[%clk 00:20:28]} {[%emt 00:06:41]} Bd7 {[%clk 00:26:22]} {[%emt 00:02:17]}
20. Nc5 {[%clk 00:19:31]} {[%emt 00:01:27]} Bc6 {[%clk 00:26:33]} {[%emt
00:00:19]} 21. Ne1 {[%clk 00:19:12]} {[%emt 00:00:49]} Qd6 {[%clk 00:21:47]}
{[%emt 00:05:16]} 22. Qb2 {[%clk 00:13:46]} {[%emt 00:05:56]} Ra8 {[%clk
00:19:14]} {[%emt 00:03:02]} 23. Nc2 {[%clk 00:12:36]} {[%emt 00:01:41]} Qxc5
{[%clk 00:18:40]} {[%emt 00:01:04]} 24. Qa3 {[%clk 00:11:35]} {[%emt 00:01:31]}
Qb6 {[%clk 00:17:15]} {[%emt 00:01:55]} 25. Rb1 {[%clk 00:11:48]} {[%emt
00:00:17]} Nxc2 {[%clk 00:17:10]} {[%emt 00:00:36]} 0-1